Cogmind - Beta 17 @@@ ROGUE MODE // 2026.08.14 @ 15:43:51 Player: Marc Result: Self-destructed Performance ------------- Evolutions (1) 500 Regions Visited (3) 600 Robots Destroyed (10) 50 Value Destroyed (141) 141 Prototype IDs (0) 0 Alien Tech Used (0) 0 Bonus (0) 0 TOTAL SCORE: 1291 Bonus ------- None Cogmind --------- Core Integrity 296/400 Matter 299/300 Energy 250/250 System Corruption 0% Temperature Cool (0) Movement Core (200) Ox3 Location -9/Materials Parts ------- > --- POWER (1) -------- Ion Engine > --- PROPULSION (3) --- (None) > --- UTILITY (3) ------ Small Storage Unit > --- WEAPON (2) ------- Mace > --- INVENTORY (8) ---- Light Ion Engine Wheel Compact Wheel Visual Processing Unit Small Laser Missile Launcher Peak State ------------ > --- POWER ------------ Ion Engine > --- PROPULSION ------- Aluminum Leg Titanium Leg > --- UTILITY ---------- Small Storage Unit Advanced Weight Redist. System > --- WEAPON ----------- Medium Laser Missile Launcher > --- INVENTORY -------- Light Ion Engine Wheel Compact Wheel Flight Unit Flight Unit Seismic Detector Small Laser Grenade Launcher [Rating: 13] Favorites ----------- Power Ion Engine Engine Ion Engine Propulsion Aluminum Leg Leg Aluminum Leg Flight Unit Flight Unit Utility Small Storage Unit Device Seismic Detector Storage Small Storage Unit Processor Targeting Computer Weapon Small Laser Energy Gun Small Laser Launcher Missile Launcher Impact Weapon Mace Build | -11 -10 -10 -9 ------- Run | Yrd Mat Min Mat Slots Evolved 2 | . . . 2 Power . | . . . . Propulsion 1 | . . . 1 Utility 1 | . . . 1 Weapon . | . . . . Parts Attached 15 | 1 3 9 2 Power 2 | . . 1 1 Engine 2 | . . 1 1 Core . | . . . . Reactor . | . . . . Propulsion 5 | . . 5 . Treads . | . . . . Leg 1 | . . 1 . Wheel . | . . . . Hover . | . . . . Flight 4 | . . 4 . Utility 4 | . 3 1 . Device 3 | . 2 1 . Storage . | . . . . Processor 1 | . 1 . . Hackware . | . . . . Protection . | . . . . Artifact . | . . . . Weapon 4 | 1 . 2 1 Energy Gun 1 | 1 . . . Energy Cannon . | . . . . Ballistic Gun . | . . . . Ballistic Cannon . | . . . . Launcher 2 | . . 2 . Special Weapon . | . . . . Impact Weapon 1 | . . . 1 Slashing Weapon . | . . . . Piercing Weapon . | . . . . Special Melee Weapon . | . . . . Unidentified Prototypes . | . . . . Parts Lost 6 | . . 2 4 Power 1 | . . 1 . Propulsion 3 | . . 1 2 Utility 2 | . . . 2 Weapon . | . . . . Highest Loss Streak 3 | . . 2 3 To Critical Strikes . | . . . . Average Backups 4 | 6 4 6 3 Power . | 1 1 1 . Propulsion 2 | 4 2 3 2 Utility . | . . 1 . Weapon 1 | 1 . 1 1 Tool/Special . | . . . . Unused Backups 10 | . 6 . 4 Power 3 | . 2 . 1 Propulsion 4 | . 2 . 2 Utility 2 | . 1 . 1 Weapon 1 | . 1 . . Tool/Special . | . . . . Average Slot Usage (%) 93 | . 99 97 70 Engine 12 | . 14 14 8 Leg 20 | . 28 13 . Flight 5 | . . 14 16 Device 14 | . 13 13 20 Storage 13 | . 14 14 11 Energy Gun 21 | . 28 12 6 Launcher 2 | . . 14 3 Peak Build Rating 13 | 6 7 13 12 Average Rating 7 | 6 6 9 9 On Entrance 7 | 6 6 7 10 Avg Prop Armor Cover (%) . | . . . . Naked Turns . | . . . . Heaviest Build 19 | 13 14 19 18 Greatest Support 27 | 20 20 27 17 Greatest Overweight (x) 2 | . . . 2 Average Overweight (x) . | . . . . Largest Inventory Capacity 8 | 8 8 8 8 Average Capacity 8 | 8 8 8 8 Most Carried 8 | 6 6 8 6 Average Carried 5 | 5 4 7 5 Final Capacity 8 | 8 8 8 8 Final Carried 7 | 3 6 7 6 Class Distribution -------------------- 100% | Mutant Dominant Class ---------------- Mutant | -10/Materials Mutant | -10/Mines Mutant | -9/Materials Resources | -11 -10 -10 -9 ----------- Run | Yrd Mat Min Mat Matter Collected 380 | 210 20 136 14 Remotely . | . . . . Salvage Created 86 | . 23 25 38 Parts 10 | . 2 6 2 Haulers Intercepted . | . . . . Recyclers Shooed . | . . . . Parts Field Recycled . | . . . . Retrieved Matter . | . . . . Parts Self-Destructed . | . . . . Prevented . | . . . . Parts Restored . | . . . . Kills | -11 -10 -10 -9 ------- Run | Yrd Mat Min Mat Combat Hostiles Destroyed 9 | . 2 6 1 Guns 4 | . 2 1 1 AOE 5 | . . 5 . Classes Destroyed 3 | . 1 . 2 Watcher 1 | . . . 1 Swarmer 8 | . 2 6 . Sentry 1 | . . . 1 Best Kill Streak 3 | . 2 3 1 Combat Bots Only 3 | . 2 3 1 Max Kills in Single Turn 3 | . 1 3 1 Gunslinging . | . . . . Exploded 3 | . . 3 . Melee . | . . . . Uniques/NPCs Destroyed . | . . . . Combat | -11 -10 -10 -9 -------- Run | Yrd Mat Min Mat Hostile Shots Fired 60 | . 14 11 35 Missed 20 | . 6 3 11 Hits 40 | . 8 8 24 Projectile 40 | . 8 8 24 AOE 4 | . . 4 . Damage Taken 690 | . 75 278 337 Core 220 | . 18 98 104 Absorbed by Shields . | . . . . Core Remaining (%) 76 | 100 . 53 . Volleys Fired 11 | . 6 4 1 Largest 2 | . 2 2 1 Hottest 90 | . 90 80 40 Shots Fired 18 | . 12 5 1 Gun 15 | . 12 2 1 Cannon . | . . . . Launcher 3 | . . 3 . Special . | . . . . Kinetic . | . . . . Thermal 15 | . 12 2 1 Explosive 3 | . . 3 . Electromagnetic . | . . . . Robot Hit Streak 2 | . 2 1 2 Robot Miss Streak 7 | . 7 1 . Penetration Max . | . . . . Secondary Targets . | . . . . Shots Hit Robots 10 | . 2 2 6 Core Hits 10 | . 2 6 2 Critical Kills . | . . . . Critical Parts Destroyed . | . . . . Critical Strikes . | . . . . Melee Attacks 11 | . . . 11 Impact 11 | . . . 11 Slashing . | . . . . Piercing . | . . . . Sneak Attacks 1 | . . . 1 Combat Hostiles . | . . . . Follow-up Attacks . | . . . . Damage Inflicted 531 | . 37 307 187 Guns 61 | . 37 12 12 Cannons . | . . . . Explosions 295 | . . 295 . Melee 175 | . . . 175 Ramming . | . . . . Kinetic . | . . . . Thermal 61 | . 37 12 12 Explosive 295 | . . 295 . Electromagnetic . | . . . . Impact 175 | . . . 175 Slashing . | . . . . Piercing . | . . . . Highest Corruption . | . . . . Average Corruption . | . . . . Corruption Purged . | . . . . Corruption Blocked . | . . . . Overload Shots . | . . . . Overflow Damage 9 | . . . 9 Projectiles . | . . . . Explosions . | . . . . Melee 9 | . . . 9 Knockbacks 1 | . . . 1 Impact 1 | . . . 1 Kinetic . | . . . . Secondary . | . . . . Self-Inflicted Damage 119 | . . 119 . Shots 3 | . . 3 . Rammed . | . . . . Targets Rammed . | . . . . Kicked . | . . . . Crushed . | . . . . Highest Temperature 120 | . 120 18 . Average Temperature 39 | . 48 7 . Received Heat Transfer 123 | . 18 . 105 Siege Activations . | . . . . Martial Activations . | . . . . Shielding Activations . | . . . . Robots Disrupted . | . . . . Combat Hostiles . | . . . . Robots Corrupted . | . . . . Combat Hostiles . | . . . . Parts Fried . | . . . . Impact Corruptions 1 | . . . 1 Robots Melted . | . . . . Combat Hostiles . | . . . . Parts Melted . | . . . . Heat Transferred 137 | . 87 25 25 Parts Sabotaged . | . . . . Parts Stolen . | . . . . Parts Stripped . | . . . . Power Chain Reactions . | . . . . Alert | -11 -10 -10 -9 ------- Run | Yrd Mat Min Mat Maximum Alert Level . | . . . . Low Security (%) 100 | 100 100 100 100 Level 1 . | . . . . Level 2 . | . . . . Level 3 . | . . . . Level 4 . | . . . . Level 5 . | . . . . High Security . | . . . . Max Security . | . . . . Peak Influence 123 | . 99 123 50 Initial 31 | . . . 31 Average 26 | . 16 81 21 Influence Increases 379 | . 132 163 84 Destroy 0b10 Robot/C 180 | . 40 120 20 Destroy 0b10 Robot/NC 5 | . . . 5 Destroy Leader 42 | . 10 20 12 Trap Triggered on 0b10 30 | . . . 30 Successful Hack 37 | . 37 . . Destroy Structure 25 | . . 23 2 Lose Combat Pursuer 60 | . 45 . 15 Influence Decreases 379 | . 132 80 167 Entered New Map 52 | . . . 52 Time Decay 272 | . 132 60 80 Lost Part 55 | . . 20 35 Squads Dispatched 3 | . 1 1 1 Investigation 3 | . 1 1 1 Extermination . | . . . . Reinforcement . | . . . . Assault . | . . . . Garrison . | . . . . Intercept . | . . . . Searches Triggered . | . . . . Construction Impeded . | . . . . Haulers Reinforced . | . . . . Active Scanning Responses . | . . . . Cargo Convoy Interrupts . | . . . . Stealth | -11 -10 -10 -9 --------- Run | Yrd Mat Min Mat Distress Signals 2 | . 1 . 1 Communications Jammed . | . . . . Distress Signals . | . . . . Times Spotted 29 | . 10 8 11 Peak Tracking Total 10 | . 5 3 10 Tactical Retreats 2 | . 1 . 1 Traps | -11 -10 -10 -9 ------- Run | Yrd Mat Min Mat Traps Triggered . | . . . . Indirectly . | . . . . Trap Hack Attempts . | . . . . Triggered . | . . . . Disarmed . | . . . . Reprogrammed . | . . . . Reused 3 | . . . 3 Traps Extracted . | . . . . Installed 3 | . . . 3 Triggered 3 | . . . 3 Most Traps Carried 3 | . . 3 3 Machines | -11 -10 -10 -9 ---------- Run | Yrd Mat Min Mat Machines Disabled . | . . . . Max in Single Turn . | . . . . Machines Repaired . | . . . . Machines Dismantled . | . . . . Machines Sabotaged . | . . . . Overloaded Fab Kills . | . . . . Hacking | -11 -10 -10 -9 --------- Run | Yrd Mat Min Mat Machines Accessed 9 | . 7 1 1 Terminals 7 | . 6 . 1 Fabricators . | . . . . Repair Stations . | . . . . Recycling Units 1 | . 1 . . Scanalyzers . | . . . . Garrison Access . | . . . . Total Hacks 22 | . 19 1 2 Successful 11 | . 10 1 . Failed 11 | . 9 . 2 Catastrophic 2 | . 1 . 1 Database Lockouts . | . . . . Manual 19 | . 17 . 2 Terminals 18 | . 16 . 2 Fabricators . | . . . . Repair Stations . | . . . . Recycling Units 3 | . 3 . . Scanalyzers . | . . . . Garrison Access . | . . . . Terminal Hacks 3 | . 2 1 . Open Door 1 | . . 1 . Recall Investigation 1 | . 1 . . Zone Layout 1 | . 1 . . Fabricator Hacks . | . . . . Repair Station Hacks . | . . . . Recycling Unit Hacks . | . . . . Scanalyzer . | . . . . Garrison Access Hacks . | . . . . Unauthorized Hacks 8 | . 8 . . Terminals 7 | . 7 . . Track 1 | . 1 . . Botnet 6 | . 6 . . Fabricators . | . . . . Repair Stations . | . . . . Recycling Units 1 | . 1 . . Mask 1 | . 1 . . Scanalyzers . | . . . . Garrison Access . | . . . . Data Cores Recovered . | . . . . Used . | . . . . Hacking Detections 7 | . 6 . 1 Full Trace Events 3 | . 2 . 1 Feedback Events . | . . . . Feedback Blocked . | . . . . Robot Schematics Acquired . | . . . . Robots Built . | . . . . Authchips . | . . . . Time . | . . . . Total Robot Build Rating . | . . . . Part Schematics Acquired . | . . . . Parts Built . | . . . . Authchips . | . . . . Time . | . . . . Total Part Build Rating . | . . . . Part Studies Acquired . | . . . . Parts Repaired . | . . . . Time . | . . . . Parts Recycled . | . . . . Recycled Matter . | . . . . Retrieved Matter . | . . . . Retrieved Components . | . . . . Parts Scanalyzed . | . . . . Part Schematics Acquired . | . . . . Parts Damaged . | . . . . Bothacking | -11 -10 -10 -9 ------------ Run | Yrd Mat Min Mat Used RIF Installer . | . . . . Robots Hacked . | . . . . Non-combat . | . . . . Combat . | . . . . Robot Hacks Applied . | . . . . Relay Couplers Released . | . . . . Fabnet Peak Effective % . | . . . . Robots Rewired . | . . . . Allies Hacked . | . . . . Hacks Repelled . | . . . . Allies | -11 -10 -10 -9 -------- Run | Yrd Mat Min Mat Total Allies . | . . . . Largest Group . | . . . . Highest-Rated Group . | . . . . Highest-Rated Ally . | . . . . Total Orders . | . . . . Ally Attacks . | . . . . Total Damage . | . . . . Kills . | . . . . Allies Corrupted . | . . . . Allies Melted . | . . . . Intel | -11 -10 -10 -9 ------- Run | Yrd Mat Min Mat Active Infowar (turns) 859 | . 628 55 176 Terrain 311 | . 80 55 176 Seismic 548 | . 548 . . Robot Analysis Total . | . . . . Derelict Logs Recovered 1 | . . 1 . Drone Launches . | . . . . Drone Recoveries . | . . . . Exploration | -11 -10 -10 -9 ------------- Run | Yrd Mat Min Mat Turns Passed 992 | 4 659 138 191 Spaces Moved 704 | 1 341 201 161 Core . | . . . . Treads . | . . . . Legs 380 | 1 341 38 . Wheels . | . . . . Hover . | . . . . Flight 324 | . . 163 161 Fastest Speed 37 | 120 120 37 37 Average Speed 83 | 120 120 52 43 Slowest Speed 200 | 120 120 125 200 Overloaded Moves . | . . . . Propulsion Burnouts . | . . . . Robots Hopped 2 | . . . 2 Potential Cave-ins . | . . . . Cave-ins Triggered . | . . . . Exploration Rate (%) 31 | 2 54 44 25 Regions Visited 3 Branch Regions 1 Pre-discovered Areas . | . . . . Known Exits Taken . | . . . . Unknown Exits Taken 3 | 1 1 1 . Scrap Searched 3 | . . 3 . Spaces Dug 2 | . . . 2 Terrain Destroyed 43 | . . 41 2 Melee 2 | . . . 2 Projectile . | . . . . AOE 41 | . . 41 . Terrain Rammed . | . . . . Walls Destroyed . | . . . . Machines Disabled . | . . . . Actions | -11 -10 -10 -9 --------- Run | Yrd Mat Min Mat Total 1073 | 4 578 230 261 Wait 298 | . 222 . 76 Move 697 | . 340 200 157 Hop 2 | . . . 2 Pick Up 15 | . 6 6 3 Fast Attach 2 | . . 2 . Attach 8 | . 1 4 3 Detach 4 | . . 2 2 Swap 7 | 1 2 4 . Drop 15 | 3 1 8 3 Fire 11 | . 6 4 1 Melee 11 | . . . 11 Ram . | . . . . Kick . | . . . . Crush . | . . . . Escape Stasis . | . . . . Rewire . | . . . . Trap 3 | . . . 3 Miscellaneous . | . . . . Route ------- -11/Scrapyard -10/Materials (discovered 2 exits: *Mat / *Min) -10/Mines -9/Materials (discovered 3 exits: Mat x2 / Min) History --------- Turn | Location | Event 5 | -11/Scrapyard | Discovered new exit (range 0) 5 | -11/Scrapyard | Entered Materials 308 | -10/Materials | Build established: Mutant 327 | -10/Materials | Discovered new exit (range 14) 591 | -10/Materials | Discovered new exit (range 16) 664 | -10/Materials | Entered Mines 686 | -10/Mines | Learned 8 Materials zone layouts 707 | -10/Mines | Met a Derelict shopkeep closing up shop 771 | -10/Mines | Found a hidden stash of uninstalled traps 773 | -10/Mines | Discovered new exit (range 15) 794 | -10/Mines | Assembled infested the area 802 | -10/Mines | Entered Materials 802 | -9/Materials | Evolved 2 slots: Propulsion x1, Utility x1 803 | -9/Materials | Identified exit to Materials 803 | -9/Materials | Identified exit to Mines 993 | -9/Materials | Self-destructed Last Messages --------------- 00926_ Connecting with Terminal... 00926_ Current location identified: Materials 00926_ ALERT: Suspicious activity at Terminal M002. Dispatching Investigation squad. 00927_ Sneak attack on W-16 Scout. 00927_ W-16 Scout destroyed. [Achievement: Watch This!] 00927_ W-16 Scout sends out distress signal. 00933_ Acquired Visual Processing Unit. 00935_ Acquired Lgt. Ion Engine. 00961_ C-30 ARC bursts open, deploying its payload. 00961_ L-31 Rogue unfolds itself. 00962_ U-05 Engineer builds a Wall. 00978_ Terrain Scanner destroyed. 00986_ G-34 Mercenary knocked back. 00988_ Adv. Weight Redist. System destroyed. 00988_ Flight Unit destroyed. 00990_ Destroyed Aluminum Leg. 00990_ G-34 Mercenary system corrupted by crushing effect. 00992_ G-34 Mercenary IFF system glitched. Map ----- +----------------------------------------------------+ | | | | | | | | | | | | | | | ????????????????????################?????????????? | | ???????????????????## #?????????????? | | ???????????????????# #?????????????? | | ??????????????##???## #?????????????? | | ?????????????? #????# > ####??????????? | | ?????????????? #????# + ??????????? | | ?????????????? ###??# # ??????????? | | ?????????????? # ###########+####### ??????????? | | ?????????????? # ## ??????????? | | ?????????????? # """ ## ########??????????? | | ??????????????## """ ## #?????????????????? | | ?????????????? # """ ## ########??????????? | | ?????????????? + + # ??????????? | | ?????????????? # "S ## s # ????????### | | ??????????????## """ ## s # ????????# | | ??????????????## "" ## s # ""????????# | | ??????????????## ## u # """???????# | | ??????????????############s + ""????????# | | ??????????????## @g # ????#???# | | ??????????????## # g # ????????# | | ???????????#??## # #####+##????????# | | ??????????????## # ???????## | | ??????????????## # #??????# | | ??????????????## """ """ # #?#????# | | ?????????T????## """ """ + #??????# | | ????????? ???## """ """ # Y """" ##?????# | | ???????? ???##"######### """" #??????# | | ????????"""" ?################ """" #?#????# | | ????????""""??# ] #????# u #??????# | | ????????"""" ?# #??#?# #??????# | | ?????""""""" ?# """ """ #????# #??????# | | ??# """"""" # """ """ #????#""" #?#????# | | ??# # """ """ #????#"R #??????### | | ??# + #????#""" #########?? | | ??????# ### #% = ###### # #?? | | ??????????# # + + """"" #?? | | ??????????# ?#################### # """"" ##? | | ??????????# ?# #????????# # """"" #?? | | ??????????# ??# #????????# ### #?? | | ??????????# ??# #????????# #?#########?? | | ??????????#???# #????????# ###########?? | | ????????????? # #????????# ## ### | | ??????????????# #????????# ## """ # | +----------------------------------------------------+ Best States ------------- Heat Dissipation 28 Energy Generation 10 Energy Capacity 250 Matter Stores 300 Matter Capacity 300 Sight Range 16 Terrain Scan Range 14 Terrain Scan Density 10 Additional Mass Support 9 Evasion (%) 62 Targeting Accuracy 5 Item Schematics ----------------- None Robot Schematics ------------------ None Fabricated ------------ Nothing Repaired ---------- Nothing Studied --------- None Alien Tech Used ----------------- None Achievements -------------- Watch This! Challenges ------------ None Game ------ Seed NeutrinoTrackerRipteeth Manual? 0 Play Time 00:11:56 Cumulative 21.1 hours Start 2026.08.14 @ 15:33:04 End 2026.08.14 @ 15:43:51 Sessions 1 Manual Loads 0 Difficulty Rogue Special Mode None Game No. 65 Rogue 58 Adventurer 7 Explorer 0 Win Type - Total 0 Types 0/0/0/0/0/0/0/0/0/0 Lore% 26 Gallery% 26 Achievement% 23 Wizard Run 0 Options --------- Layout 0 ASCII 0 Keyboard 0 Movement Mouse Keybinds 0 Fullscreen 1 Font 18/SmallcapsGlow Map View 38x25 Zoom Use 97% Tactical HUD 1 Map Filters NONE Filters NONE Steam 1 RUN: 15efdce1-4900-48c5-8127-a944c7a3f587